[Event "Romanian-ch Open 2022"]
[Site "Eforie Nord"]
[Date "2022.02.22"]
[Round "4.11"]
[White "Martian, Dragos-Daniel"]
[Black "Badea, Bela"]
[Result "1/2-1/2"]
[ECO "C41"]
[WhiteElo "2270"]
[BlackElo "2413"]
[Annotator "NA"]
[PlyCount "135"]
[EventDate "2022.02.20"]
[EventType "swiss"]
[EventCountry "ROU"]
[SourceTitle "playchess.com"]
[Source "ChessBase"]
[SourceQuality "1"]
[TimeControl "40/5400+30:900+30"]

1. e4 {[%emt 0:00:04]} d6 {[%emt 0:00:03]} 2. d4 {[%emt 0:00:14]} Nf6 {[%emt 0:00:06]} 3. Nc3 {[%emt 0:00:17]} e5 {[%emt 0:00:06]} 4. Nf3 {[%emt 0:02:06]} Nbd7 {[%emt 0:00:16]} 5. Bc4 {[%emt 0:00:28]} Be7 {[%emt 0:00:07]} 6. a4 {[%emt 0:00:39]} O-O {[%emt 0:01:10]} 7. O-O {[%emt 0:00:36]} c6 {[%emt 0:00:13]} 8. h3 {[%emt 0:00:56]} b6 {[%emt 0:00:54]} 9. Qe2 {[%emt 0:00:42]} a6 {[%emt 0:01:50]} 10. Rd1 {[%emt 0:01:00]} Qc7 {[%emt 0:01:06]} 11. Be3 {[%emt 0:02:02]} Bb7 {[%emt 0:13:01]} 12. Ba2 {[%emt 0:08:04]} b5 {[%emt 0:01:28]} 13. axb5 {[%emt 0:01:22]} axb5 {[%emt 0:03:03]} 14. b4 {[%emt 0:00:28]} Nb6 {[%emt 0:08:10]} (14... d5 $11) 15. Bb3 {[%emt 0:02:17]} Na4 {[%emt 0:23:08]} 16. Bd2 {[%emt 0:08:17]} Nxc3 {[%emt 0:04:21]} 17. Bxc3 {[%emt 0:00:04]} c5 {[%emt 0:00:42] [#]} (17... d5 $11) 18. dxc5 $1 {[%emt 0:27:13]} Nxe4 {[%emt 0:00:55]} 19. Bb2 {[%emt 0:00:23]} dxc5 {[%emt 0:13:22]} 20. Bxe5 {[%emt 0:01:22]} Qb6 {[%emt 0:09:05]} 21. Rd7 {[%emt 0:07:46]} Rae8 {[%emt 0:01:40]} 22. Qe3 {[%emt 0:07:37]} Bf6 $16 {[%emt 0:09:47]} (22... Bc6 $14 23. Rda7 Bb7) 23. bxc5 {[%emt 0:28:03]} Qc6 {[%emt 0:00:00]} 24. Rc7 {[%emt 0:00:00]} Qxc7 {[%emt 0:00:02]} 25. Bxc7 {[%emt 0:00:00]} Bxa1 {[%emt 0:00:01]} 26. Qf4 {[%emt 0:00:00]} Nxc5 {[%emt 0:02:36]} 27. Bd6 {[%emt 0:00:00]} Nxb3 {[%emt 0:00:13]} 28. cxb3 {[%emt 0:00:00]} Bxf3 {[%emt 0:00:47]} 29. Qxf3 {[%emt 0:02:28]} Re1+ {[%emt 0:00:06]} 30. Kh2 {[%emt 0:00:02]} Be5+ {[%emt 0:00:16]} 31. Bxe5 {[%emt 0:00:03]} Rxe5 {[%emt 0:00:04]} 32. Qb7 {[%emt 0:00:51]} Rd8 {[%emt 0:01:07]} 33. Qc7 {[%emt 0:00:15]} Red5 {[%emt 0:00:07]} 34. Qb6 {[%emt 0:00:48]} g6 {[%emt 0:00:16]} 35. Qa5 {[%emt 0:00:40]} h5 {[%emt 0:00:19]} 36. Qb6 {[%emt 0:00:22]} R8d6 {[%emt 0:00:29]} 37. Qa7 {[%emt 0:00:53]} Kg7 {[%emt 0:00:50]} 38. Qa1+ {[%emt 0:00:25]} Kh7 {[%emt 0:00:46]} 39. Qa7 {[%emt 0:00:41]} Rd7 {[%emt 0:01:25]} 40. Qb8 {[%emt 0:00:00]} Rf5 {[%emt 0:00:00]} 41. h4 {[%emt 0:08:23]} Rd3 {[%emt 0:01:10]} 42. f3 {[%emt 0:03:20]} Rxb3 {[%emt 0:00:26]} 43. Qb7 {[%emt 0:00:30]} Rb2 {[%emt 0:07:05]} 44. Kh3 {[%emt 0:00:15]} Rb3 {[%emt 0:01:58]} 45. Kh2 {[%emt 0:00:15]} Rb4 {[%emt 0:01:32]} 46. Kg3 {[%emt 0:01:29]} Kg7 {[%emt 0:01:00]} 47. Qa7 {[%emt 0:01:32]} Rc4 {[%emt 0:02:10]} 48. Qa1+ {[%emt 0:00:38]} Kh7 {[%emt 0:00:08]} 49. Qa7 {[%emt 0:01:10]} b4 {[%emt 0:00:37]} 50. Qb7 {[%emt 0:00:15]} Kg7 {[%emt 0:00:11]} 51. Qb8 {[%emt 0:00:15]} Rd4 {[%emt 0:00:45]} 52. Kh3 {[%emt 0:00:41]} Rc5 {[%emt 0:00:55]} 53. Qb6 {[%emt 0:00:37]} Rcc4 {[%emt 0:00:28]} 54. g3 {[%emt 0:00:38]} Rd3 {[%emt 0:01:49]} 55. Qb5 {[%emt 0:00:24]} Rcc3 {[%emt 0:00:31]} 56. Qxb4 {[%emt 0:00:47]} Rxf3 {[%emt 0:00:05]} 57. Qd4+ {[%emt 0:00:40]} Kh7 {[%emt 0:00:09]} 58. Kh2 {[%emt 0:01:35]} Rxg3 {[%emt 0:00:11]} 59. Qd5 {[%emt 0:00:07]} Rgf3 {[%emt 0:00:10]} 60. Kg2 {[%emt 0:00:14]} Rf5 {[%emt 0:00:12]} 61. Qd4 {[%emt 0:00:05]} Rcf3 {[%emt 0:00:20]} 62. Qd8 {[%emt 0:00:11]} R3f4 {[%emt 0:00:09]} 63. Kg3 {[%emt 0:00:10]} Rg4+ {[%emt 0:00:05]} 64. Kh3 {[%emt 0:00:03]} Rff4 {[%emt 0:00:05]} 65. Kh2 {[%emt 0:00:07]} Rxh4+ {[%emt 0:00:16]} 66. Kg3 {[%emt 0:00:01]} Rhg4+ {[%emt 0:00:11]} 67. Kh3 {[%emt 0:00:02]} Rf3+ {[%emt 0:00:56]} 68. Kh2 {[%emt 0:00:01]} 1/2-1/2

[Event "Romanian-ch Open 2022"]
[Site "Eforie Nord"]
[Date "2022.02.22"]
[Round "4.12"]
[White "Voiteanu, Gabriel"]
[Black "Filip, Lucian-Ioan"]
[Result "0-1"]
[ECO "A70"]
[WhiteElo "2207"]
[BlackElo "2391"]
[Annotator "NA"]
[PlyCount "104"]
[EventDate "2022.02.20"]
[EventType "swiss"]
[EventCountry "ROU"]
[SourceTitle "playchess.com"]
[Source "ChessBase"]
[SourceQuality "1"]
[TimeControl "40/5400+30:900+30"]

1. d4 {[%emt 0:00:04]} Nf6 {[%emt 0:00:08]} 2. c4 {[%emt 0:00:07]} e6 {[%emt 0:00:03]} 3. Nf3 {[%emt 0:00:12]} c5 {[%emt 0:00:58]} 4. d5 {[%emt 0:00:44]} d6 {[%emt 0:00:15]} 5. Nc3 {[%emt 0:00:39]} exd5 {[%emt 0:00:02]} 6. cxd5 {[%emt 0:00:07]} g6 {[%emt 0:00:03]} 7. h3 {[%emt 0:04:47]} Bg7 {[%emt 0:00:27]} 8. e4 {[%emt 0:01:27]} O-O {[%emt 0:01:00]} 9. Bd3 {[%emt 0:03:14]} b5 {[%emt 0:01:13]} 10. Bxb5 {[%emt 0:01:50]} Nxe4 {[%emt 0:00:11]} 11. Nxe4 {[%emt 0:01:37]} Qa5+ {[%emt 0:01:26]} 12. Nfd2 {[%emt 0:02:18]} Qxb5 {[%emt 0:00:40]} 13. Nxd6 {[%emt 0:00:35]} Qa6 {[%emt 0:00:04]} 14. N2c4 {[%emt 0:07:42]} Nd7 {[%emt 0:00:07]} 15. O-O {[%emt 0:10:29]} Ne5 {[%emt 0:00:07]} 16. Nxc8 {[%emt 0:15:18]} Raxc8 {[%emt 0:00:41]} 17. Nxe5 {[%emt 0:02:31]} Bxe5 {[%emt 0:00:03]} 18. Re1 {[%emt 0:14:34]} Rfe8 {[%emt 0:10:51]} 19. Re3 $11 {[%emt 0:24:12]} Qd6 {[%emt 0:50:08]} 20. Rd3 {[%emt 0:05:04]} c4 {[%emt 0:05:42]} 21. Rd2 {[%emt 0:02:32]} Rc5 {[%emt 0:11:59]} 22. Rb1 {[%emt 0:00:33]} Rd8 {[%emt 0:06:34]} 23. Qc2 {[%emt 0:00:40]} a6 {[%emt 0:05:46]} 24. Kf1 {[%emt 0:00:16]} h5 {[%emt 0:03:21]} 25. Qe4 {[%emt 0:00:38]} Rxd5 {[%emt 0:00:34]} 26. Rxd5 {[%emt 0:00:16]} Qxd5 {[%emt 0:00:03]} 27. Qxd5 {[%emt 0:00:14]} Rxd5 {[%emt 0:00:01]} 28. Ke2 {[%emt 0:00:24]} Ra5 {[%emt 0:00:29]} 29. a3 {[%emt 0:00:51]} Rb5 {[%emt 0:00:40]} 30. Kd1 {[%emt 0:00:32]} a5 {[%emt 0:00:29]} 31. Kc2 {[%emt 0:00:51]} a4 {[%emt 0:00:04]} 32. Bd2 {[%emt 0:00:30]} Rb3 {[%emt 0:00:06]} 33. Bc1 {[%emt 0:00:30]} Kg7 {[%emt 0:00:59]} 34. Ra1 {[%emt 0:00:32]} g5 {[%emt 0:01:29]} 35. Ra2 {[%emt 0:00:18]} g4 {[%emt 0:00:29]} 36. hxg4 {[%emt 0:00:04]} hxg4 {[%emt 0:00:02]} 37. Bd2 {[%emt 0:01:01]} Kg6 {[%emt 0:00:08]} 38. Bc3 {[%emt 0:00:33]} Bxc3 {[%emt 0:00:07]} 39. bxc3 {[%emt 0:00:02]} Kf5 {[%emt 0:00:08]} 40. Ra1 {[%emt 0:00:00]} Kf4 {[%emt 0:00:00]} 41. Rd1 {[%emt 0:02:56]} Rxa3 {[%emt 0:00:24]} 42. Rd4+ {[%emt 0:07:39]} Kg5 {[%emt 0:06:23]} 43. Rxc4 {[%emt 0:06:26]} Ra2+ {[%emt 0:00:05]} 44. Kd3 {[%emt 0:00:08]} Rxf2 {[%emt 0:00:41]} 45. Rxa4 {[%emt 0:00:09]} Rxg2 {[%emt 0:00:06]} 46. c4 {[%emt 0:00:18]} Rg3+ {[%emt 0:00:37]} 47. Kd2 {[%emt 0:01:05]} Rg2+ {[%emt 0:01:44]} 48. Kd3 {[%emt 0:00:12]} Rg1 {[%emt 0:00:33]} 49. Kd2 {[%emt 0:00:53]} g3 {[%emt 0:04:48]} 50. Ra8 {[%emt 0:01:00]} Kf4 {[%emt 0:01:22]} 51. c5 {[%emt 0:00:49]} g2 {[%emt 0:00:52]} 52. Rg8 {[%emt 0:00:09]} Ra1 {[%emt 0:06:18]} 0-1

[Event "Romanian-ch Open 2022"]
[Site "Eforie Nord"]
[Date "2022.02.22"]
[Round "4.18"]
[White "Vajda, Albert"]
[Black "Andronescu, Madalin"]
[Result "1-0"]
[ECO "B50"]
[WhiteElo "2351"]
[BlackElo "2122"]
[Annotator "NA"]
[PlyCount "85"]
[EventDate "2022.02.20"]
[EventType "swiss"]
[EventCountry "ROU"]
[SourceTitle "playchess.com"]
[Source "ChessBase"]
[SourceQuality "1"]
[TimeControl "40/5400+30:900+30"]

1. e4 {[%emt 0:00:03]} c5 {[%emt 0:00:26]} 2. Nf3 {[%emt 0:00:08]} d6 {[%emt 0:00:06]} 3. c3 {[%emt 0:00:10]} Nf6 {[%emt 0:00:26]} 4. Bd3 {[%emt 0:00:06]} e5 {[%emt 0:05:47]} 5. Bc2 {[%emt 0:03:33]} Be7 {[%emt 0:00:12]} 6. O-O {[%emt 0:00:47]} O-O {[%emt 0:00:16]} 7. d3 {[%emt 0:01:26]} Nc6 {[%emt 0:01:58]} 8. Nbd2 {[%emt 0:01:14]} d5 {[%emt 0:02:01]} 9. Ba4 {[%emt 0:03:24]} Bg4 {[%emt 0:10:28]} 10. Re1 {[%emt 0:05:28]} Qc7 {[%emt 0:04:01]} 11. h3 {[%emt 0:13:43]} Bh5 {[%emt 0:01:26]} 12. Nf1 {[%emt 0:02:43]} Rad8 {[%emt 0:02:08]} 13. Qe2 {[%emt 0:00:43]} c4 {[%emt 0:00:48]} 14. Bc2 {[%emt 0:06:46]} cxd3 {[%emt 0:12:08]} 15. Bxd3 {[%emt 0:00:16]} dxe4 {[%emt 0:00:06]} 16. Bxe4 {[%emt 0:00:08]} Nxe4 {[%emt 0:00:05]} 17. Qxe4 {[%emt 0:00:10]} Bg6 {[%emt 0:12:15]} 18. Qa4 {[%emt 0:04:27]} h6 {[%emt 0:07:39]} 19. Be3 {[%emt 0:04:58]} a6 {[%emt 0:01:05]} 20. N1h2 {[%emt 0:07:18]} e4 {[%emt 0:06:16]} 21. Nd4 {[%emt 0:02:48]} Ne5 {[%emt 0:02:03]} 22. Bf4 {[%emt 0:04:17] [#]} Nf3+ $1 {[%emt 0:03:40]} 23. Nhxf3 {[%emt 0:04:50]} Qxf4 {[%emt 0:00:08]} 24. g3 {[%emt 0:01:21] [#]} Qd6 $11 {[%emt 0:07:00]} (24... Qb8 $1 $17 25. Nd2 f5) 25. Nd2 {[%emt 0:01:45]} Qd5 {[%emt 0:00:07]} 26. Qb3 {[%emt 0:03:54]} Bf6 {[%emt 0:08:38]} 27. Qxd5 {[%emt 0:03:11]} Rxd5 {[%emt 0:00:06]} 28. N4b3 {[%emt 0:00:34]} Re8 {[%emt 0:00:09]} 29. Re2 {[%emt 0:00:59]} Bd8 {[%emt 0:04:50]} 30. Rae1 {[%emt 0:05:09]} f5 {[%emt 0:00:07]} 31. Nc4 {[%emt 0:01:26]} f4 {[%emt 0:04:05]} 32. gxf4 {[%emt 0:03:36]} Bc7 {[%emt 0:01:25]} 33. Ncd2 {[%emt 0:04:19]} Bxf4 {[%emt 0:01:37]} 34. Nxe4 {[%emt 0:01:31]} Rde5 {[%emt 0:01:24]} 35. f3 {[%emt 0:01:28]} Bf5 {[%emt 0:00:29]} 36. Kg2 {[%emt 0:00:48]} R8e6 {[%emt 0:00:05]} 37. Rh1 {[%emt 0:03:09]} g5 {[%emt 0:02:55]} 38. Nd4 {[%emt 0:01:05]} Rb6 {[%emt 0:00:25]} 39. Nxf5 {[%emt 0:00:54]} Rxf5 {[%emt 0:00:05]} 40. Rd1 {[%emt 0:00:00]} Rf7 {[%emt 0:00:00]} 41. Nc5 {[%emt 0:04:09]} Kg7 {[%emt 0:06:00]} 42. b4 {[%emt 0:02:32]} Rc6 {[%emt 0:01:17]} 43. Ne6+ {[%emt 0:01:04]} 1-0

[Event "Romanian-ch Open 2022"]
[Site "Eforie Nord"]
[Date "2022.02.22"]
[Round "4.19"]
[White "Cnejev, Vladimir-Alexandru"]
[Black "Serban, Cristian-Stefan"]
[Result "0-1"]
[ECO "B51"]
[WhiteElo "2179"]
[BlackElo "2090"]
[Annotator "NA"]
[PlyCount "133"]
[EventDate "2022.02.20"]
[EventType "swiss"]
[EventCountry "ROU"]
[SourceTitle "playchess.com"]
[Source "ChessBase"]
[SourceQuality "1"]
[TimeControl "40/5400+30:900+30"]

1. e4 {[%emt 0:00:00]} c5 {[%emt 0:22:09]} 2. Nf3 {[%emt 0:00:00]} d6 {[%emt 0:00:30]} 3. Bb5+ {[%emt 0:00:13]} Nd7 {[%emt 0:00:30]} 4. O-O {[%emt 0:00:30]} a6 {[%emt 0:00:30]} 5. Bd3 {[%emt 0:00:30]} Ngf6 {[%emt 0:00:30]} 6. Re1 {[%emt 0:00:30]} e6 {[%emt 0:00:30] The main line 6...e6 scores better than 6...b5.} 7. c3 {[%emt 0:00:30]} b5 {[%emt 0:00:30]} 8. a4 {[%emt 0:00:30]} c4 {[%emt 0:00:30]} 9. Bc2 {[%emt 0:00:30]} Bb7 {[%emt 0:00:30]} 10. axb5 {[%emt 0:00:30]} axb5 {[%emt 0:00:30]} 11. Rxa8 {[%emt 0:00:30]} Qxa8 {[%emt 0:00:30]} 12. Na3 {[%emt 0:00:30]} Bxe4 {[%emt 0:00:30]} 13. Bxe4 {[%emt 0:00:30]} Nxe4 {[%emt 0:00:30]} 14. Nxb5 {[%emt 0:00:30]} Qb7 {[%emt 0:00:30]} 15. Qe2 {[%emt 0:00:30]} d5 {[%emt 0:00:30] [#]} 16. d3 $146 {[%emt 0:00:30]} ({Predecessor:} 16. Nbd4 Ndc5 17. Ne5 Bd6 18. Ndf3 Qb6 19. Qe3 Qa6 20. b4 cxb3 21. d3 Nf6 22. Qd4 {0-1 (52) Madaminov,M (2328)-Vidit,S (2727) Chess.com INT 2021}) 16... cxd3 {[%emt 0:00:30]} 17. Qxd3 {[%emt 0:00:30]} Bc5 {[%emt 0:00:30]} 18. Nfd4 {[%emt 0:00:30]} e5 {[%emt 0:00:30]} 19. f3 {[%emt 0:00:30]} exd4 {[%emt 0:00:30]} 20. cxd4 $11 {[%emt 0:00:30]} O-O 21. fxe4 dxe4 22. Rxe4 Rc8 23. Be3 Nf6 24. Re5 Bb4 25. h3 g6 26. Nc3 Qa8 27. Bg5 Qa1+ 28. Nd1 Nd7 29. Re2 Bd6 30. Rf2 Nf8 31. Qf3 Rc7 32. Be3 Ne6 33. Rf1 Qa2 34. d5 Nf8 35. Bd4 f5 36. Bc3 Nd7 37. Re1 Nb6 38. Ne3 Re7 39. Bd4 Nxd5 40. Kh1 Bf4 41. Nc2 Rxe1+ 42. Nxe1 Qc4 43. Qd3 Qc1 44. Qe2 Kf7 45. Kg1 Bg3 46. Bf2 Nf4 47. Qc2 Bxf2+ 48. Kxf2 Qxc2+ 49. Nxc2 Nd3+ 50. Kf3 Nxb2 51. g4 Kf6 52. gxf5 {[%emt 0:39:43]} gxf5 {[%emt 1:02:39]} 53. Ne3 {[%emt 0:00:30]} Ke5 {[%emt 0:00:30]} 54. Ng2 {[%emt 0:00:30]} Nd3 {[%emt 0:00:30]} 55. Ke3 {[%emt 0:00:30]} Nc5 {[%emt 0:00:30]} 56. Nf4 {[%emt 0:00:30]} Ne6 {[%emt 0:00:30]} 57. Nd3+ {[%emt 0:00:30]} Kf6 {[%emt 0:00:30]} 58. Kf3 {[%emt 0:00:30]} Kg5 {[%emt 0:00:30]} 59. Ne5 {[%emt 0:00:30]} Kh4 {[%emt 0:00:30]} 60. Nf7 {[%emt 0:00:30]} Ng5+ {[%emt 0:00:30]} 61. Nxg5 {[%emt 0:00:30]} Kxg5 {[%emt 0:00:30]} 62. Ke3 {[%emt 0:00:30]} Kf6 {[%emt 0:00:30]} 63. Kd4 {[%emt 0:00:30]} f4 {[%emt 0:00:30]} 64. Ke4 {[%emt 0:00:30]} Kg5 {[%emt 0:00:30]} 65. Kd3 {[%emt 0:00:30]} Kh4 {[%emt 0:00:30]} 66. Ke2 {[%emt 0:00:30]} Kg3 {[%emt 0:00:30]} 67. Kf1 {[%emt 0:00:30]} 0-1

[Event "Romanian-ch Open 2022"]
[Site "Eforie Nord"]
[Date "2022.02.22"]
[Round "4.21"]
[White "Mazilu, Stefan-Fabian"]
[Black "Vilcu, Matei-Stefan"]
[Result "1/2-1/2"]
[ECO "B52"]
[WhiteElo "1886"]
[BlackElo "2112"]
[Annotator "NA"]
[PlyCount "118"]
[EventDate "2022.02.20"]
[EventType "swiss"]
[EventCountry "ROU"]
[SourceTitle "playchess.com"]
[Source "ChessBase"]
[SourceQuality "1"]
[TimeControl "40/5400+30:900+30"]

1. e4 {[%emt 0:00:06]} c5 {[%emt 0:00:06]} 2. Nf3 {[%emt 0:00:04]} d6 {[%emt 0:00:04]} 3. Bb5+ {[%emt 0:00:07]} Bd7 {[%emt 0:00:16]} 4. Bxd7+ {[%emt 0:00:08]} Nxd7 {[%emt 0:00:05]} 5. O-O {[%emt 0:00:09]} Ngf6 {[%emt 0:00:03]} 6. Qe2 {[%emt 0:00:05]} e6 {[%emt 0:00:08]} 7. d4 {[%emt 0:00:07]} cxd4 {[%emt 0:00:23]} 8. Nxd4 {[%emt 0:00:13]} Be7 {[%emt 0:00:15]} 9. c4 {[%emt 0:00:10]} a6 {[%emt 0:00:30]} 10. b3 {[%emt 0:00:33]} O-O {[%emt 0:00:19]} 11. Bb2 {[%emt 0:00:10]} Qa5 {[%emt 0:00:39]} 12. Nc3 {[%emt 0:03:07]} Rfe8 {[%emt 0:01:30]} 13. Rad1 {[%emt 0:08:04]} Rac8 {[%emt 0:01:41]} 14. Nc2 {[%emt 0:23:31]} h6 {[%emt 0:15:23]} 15. Kh1 {[%emt 0:02:06]} Nb8 {[%emt 0:07:54]} 16. f4 {[%emt 0:04:38]} Nc6 {[%emt 0:02:41]} 17. g4 {[%emt 0:11:39]} Nh7 {[%emt 0:04:51]} 18. Qf2 {[%emt 0:08:05]} b5 {[%emt 0:04:05]} 19. cxb5 {[%emt 0:03:24]} axb5 {[%emt 0:02:56]} 20. a3 {[%emt 0:00:18]} Bf6 {[%emt 0:19:26]} 21. b4 {[%emt 0:02:28]} Qa8 {[%emt 0:00:09]} 22. Qf3 {[%emt 0:03:40]} Red8 {[%emt 0:12:35]} 23. Rd3 {[%emt 0:01:54]} Ne7 {[%emt 0:05:39]} 24. Nd4 {[%emt 0:01:42]} Bxd4 {[%emt 0:04:05]} 25. Rxd4 {[%emt 0:00:18]} Qc6 {[%emt 0:01:26]} 26. h4 {[%emt 0:03:29]} f5 {[%emt 0:01:09]} 27. exf5 {[%emt 0:04:42]} exf5 {[%emt 0:00:31]} 28. g5 {[%emt 0:01:14]} hxg5 {[%emt 0:03:01]} 29. hxg5 {[%emt 0:00:14]} Nf8 {[%emt 0:01:32]} 30. Qxc6 {[%emt 0:02:05]} Rxc6 {[%emt 0:02:28]} 31. Nxb5 {[%emt 0:00:39]} Rc2 {[%emt 0:00:42]} 32. Ba1 {[%emt 0:01:07]} d5 {[%emt 0:01:14]} 33. Rd3 {[%emt 0:01:36]} Kf7 {[%emt 0:02:22]} 34. Bd4 {[%emt 0:05:02]} Ne6 {[%emt 0:01:36]} 35. Be5 {[%emt 0:02:45]} Rh8+ {[%emt 0:00:49]} 36. Kg1 {[%emt 0:00:07]} Rch2 {[%emt 0:01:32]} 37. a4 {[%emt 0:02:55]} R8h4 {[%emt 0:03:06]} 38. Rdf3 {[%emt 0:01:36]} Ra2 {[%emt 0:00:38]} 39. a5 {[%emt 0:00:23]} Rg4+ {[%emt 0:00:11]} 40. Kh1 {[%emt 0:00:00]} Rh4+ {[%emt 0:00:00]} 41. Kg1 {[%emt 0:00:17]} Rg4+ {[%emt 0:01:46]} 42. Kh1 {[%emt 0:00:04]} Nc6 {[%emt 0:07:26]} 43. Nd6+ {[%emt 0:01:13]} Kg6 {[%emt 0:00:10]} 44. Bc3 {[%emt 0:07:18]} Ncd4 {[%emt 0:03:07]} 45. Bxd4 {[%emt 0:05:00]} Nxd4 {[%emt 0:00:04]} 46. R3f2 {[%emt 0:00:27]} Ne2 {[%emt 0:02:01]} 47. Rxe2 {[%emt 0:02:46]} Rxe2 {[%emt 0:00:07]} 48. a6 {[%emt 0:01:50]} Rh4+ {[%emt 0:01:41]} 49. Kg1 {[%emt 0:00:19]} Ra2 {[%emt 0:00:45]} 50. b5 {[%emt 0:00:20]} Rhh2 {[%emt 0:01:33]} 51. Rb1 {[%emt 0:01:27]} Rag2+ {[%emt 0:00:25]} 52. Kf1 {[%emt 0:00:10]} Rf2+ {[%emt 0:00:08]} 53. Kg1 {[%emt 0:00:29]} Rhg2+ {[%emt 0:01:50]} 54. Kh1 {[%emt 0:00:07]} Rh2+ {[%emt 0:02:16]} 55. Kg1 {[%emt 0:00:07]} Rfg2+ {[%emt 0:00:06]} 56. Kf1 {[%emt 0:00:04]} Ra2 {[%emt 0:00:46]} 57. Kg1 {[%emt 0:00:12]} Rhg2+ {[%emt 0:01:05]} 58. Kh1 {[%emt 0:00:11]} Rh2+ {[%emt 0:00:10]} 59. Kg1 {[%emt 0:00:07]} Rhg2+ {[%emt 0:00:49]} 1/2-1/2

[Event "Romanian-ch Open 2022"]
[Site "Eforie Nord"]
[Date "2022.02.22"]
[Round "4.22"]
[White "Popescu, Daniel-Vasilica"]
[Black "Capragiu, Matei-Stefan"]
[Result "1-0"]
[ECO "C02"]
[WhiteElo "2064"]
[BlackElo "1902"]
[Annotator "NA"]
[PlyCount "125"]
[EventDate "2022.02.20"]
[EventType "swiss"]
[EventCountry "ROU"]
[SourceTitle "playchess.com"]
[Source "ChessBase"]
[SourceQuality "1"]
[TimeControl "40/5400+30:900+30"]

1. e4 {[%emt 0:00:03]} e6 {[%emt 0:00:03]} 2. d4 {[%emt 0:00:04]} d5 {[%emt 0:00:05]} 3. e5 {[%emt 0:00:04]} c5 {[%emt 0:00:03]} 4. c3 {[%emt 0:00:05]} Nc6 {[%emt 0:00:04]} 5. Nf3 {[%emt 0:00:03]} Bd7 {[%emt 0:00:07]} 6. a3 {[%emt 0:00:14]} Nge7 {[%emt 0:00:12]} 7. b4 {[%emt 0:00:44]} cxd4 {[%emt 0:00:08]} 8. cxd4 {[%emt 0:00:06]} Nf5 {[%emt 0:00:07]} 9. Bb2 {[%emt 0:05:57]} b5 {[%emt 0:01:23]} 10. Bxb5 {[%emt 0:31:42]} Nxe5 {[%emt 0:03:08]} 11. Bxd7+ {[%emt 0:00:07]} Nxd7 {[%emt 0:00:06]} 12. O-O {[%emt 0:10:55]} Bd6 {[%emt 0:01:33]} 13. Nc3 {[%emt 0:06:41]} Nb6 {[%emt 0:03:05]} 14. Nb5 {[%emt 0:02:24]} O-O {[%emt 0:02:56]} 15. Qd3 {[%emt 0:04:51]} Nc4 {[%emt 0:03:35]} 16. Bc1 {[%emt 0:00:01]} a5 {[%emt 0:03:21]} 17. bxa5 {[%emt 0:08:39]} Qxa5 {[%emt 0:01:59]} 18. Nxd6 {[%emt 0:01:41]} Nfxd6 {[%emt 0:03:49]} 19. Ng5 {[%emt 0:00:34]} f5 {[%emt 0:13:28]} 20. Qh3 {[%emt 0:06:08]} h6 {[%emt 0:02:26]} 21. Nxe6 {[%emt 0:00:02]} Rf6 {[%emt 0:03:21]} 22. Nf4 {[%emt 0:00:01]} g5 {[%emt 0:02:12]} 23. Ne2 {[%emt 0:08:06]} Re8 {[%emt 0:02:50]} 24. Nc3 {[%emt 0:04:24]} Ne4 {[%emt 0:01:54]} 25. Nxe4 {[%emt 0:00:54]} Rxe4 {[%emt 0:00:27]} 26. Qb3 {[%emt 0:03:21]} Rb6 {[%emt 0:03:49]} 27. Qd3 {[%emt 0:00:07]} f4 {[%emt 0:03:06]} 28. Rb1 {[%emt 0:03:04]} Kg7 {[%emt 0:05:01]} 29. Rxb6 {[%emt 0:01:55]} Qxb6 {[%emt 0:00:08]} 30. Bd2 {[%emt 0:00:33]} Nxd2 {[%emt 0:00:49]} 31. Qxd2 {[%emt 0:00:02]} Qxd4 {[%emt 0:00:11]} 32. Qa5 {[%emt 0:01:27]} Re7 {[%emt 0:03:39]} 33. Qd8 {[%emt 0:00:08]} Qe4 {[%emt 0:01:27]} 34. h3 {[%emt 0:00:32]} Qe6 {[%emt 0:01:12]} 35. Rd1 {[%emt 0:01:00]} Rd7 {[%emt 0:01:13]} 36. Qa5 {[%emt 0:00:08]} d4 {[%emt 0:01:47]} 37. Qb4 {[%emt 0:00:38]} Qd6 {[%emt 0:01:39]} 38. Qb2 {[%emt 0:00:01]} Kg6 {[%emt 0:00:40]} 39. Rd3 {[%emt 0:00:01]} Qc5 {[%emt 0:02:22]} 40. Qe2 {[%emt 0:00:00]} Re7 {[%emt 0:00:00]} 41. Qd2 {[%emt 0:04:59]} Rd7 {[%emt 0:03:36]} 42. Qd1 {[%emt 0:01:19]} Qa5 {[%emt 0:12:17]} 43. h4 {[%emt 0:02:35]} Re7 {[%emt 0:04:16]} 44. h5+ {[%emt 0:00:21]} Kf6 {[%emt 0:01:21]} 45. Kh2 {[%emt 0:00:14]} Re1 {[%emt 0:01:52]} 46. Qf3 {[%emt 0:01:14]} Qe5 {[%emt 0:06:15]} 47. Rb3 {[%emt 0:04:16]} Re4 {[%emt 0:08:25]} 48. g4 {[%emt 0:03:48]} Qe6 {[%emt 0:04:58]} 49. Rb5 {[%emt 0:00:19]} Re5 {[%emt 0:00:29]} 50. Rb7 {[%emt 0:01:59]} Qd5 {[%emt 0:03:41]} 51. Qd3 {[%emt 0:00:21]} Qe4 {[%emt 0:01:14]} 52. Rb6+ {[%emt 0:01:06]} Ke7 {[%emt 0:01:53]} 53. Qa6 {[%emt 0:00:31]} Re6 {[%emt 0:00:22]} 54. Rb7+ {[%emt 0:00:17]} Kf6 {[%emt 0:00:28]} 55. Qa8 {[%emt 0:00:14]} Re8 {[%emt 0:01:47]} 56. Rb6+ {[%emt 0:00:48]} Kf7 {[%emt 0:00:14]} 57. Qa6 {[%emt 0:00:46]} Re6 {[%emt 0:00:08]} 58. Rb7+ {[%emt 0:00:16]} Kf6 {[%emt 0:00:10]} 59. Qa7 {[%emt 0:00:38]} Qe2 {[%emt 0:01:37]} 60. Qxd4+ {[%emt 0:00:14]} Qe5 {[%emt 0:00:07]} 61. Qd8+ {[%emt 0:00:17]} Re7 {[%emt 0:00:18]} 62. Qh8+ {[%emt 0:00:23]} Ke6 {[%emt 0:00:18]} 63. Rxe7+ {[%emt 0:02:38]} 1-0